fUST/lending_fUST_20251024
["ID","MTS","AMOUNT","RATE_DAILY","PERIOD"]
[392225443,1761268238142,-170.0,0.00021861,2]
[392225444,1761268238151,-3461.9343292,0.00021862,2]
[392225445,1761268238161,-165.3197161,0.00021971,2]
[392225446,1761268238171,-302.82822326,0.00021971,2]
[392225447,1761268238182,-869.71204984,0.00021971,2]
[392225448,1761268238193,-12178.7669393,0.00021971,2]
[392225784,1761268241676,-0.02625381,0.00021971,2]
[392225806,1761268243100,-5968.09241697,0.00021971,2]
[392226102,1761268246268,-7346.31060276,0.00021971,2]
[392226103,1761268246280,-3186.78922494,0.00021971,2]
[392226104,1761268246291,-1775.89313333,0.00021971,2]
[392229139,1761268361046,160.0,0.0003013,120]
[392229141,1761268472451,9455.540354,0.0002097,2]
[392229142,1761268472471,10000.01,0.0002097,2]
[392229143,1761268472491,10000.01,0.0002097,2]
[392229144,1761268472512,10000.01,0.0002097,2]
[392229145,1761268472532,10000.01,0.0002097,2]
[392229146,1761268472552,10000.01,0.0002097,2]
[392229147,1761268472574,356.3292479,0.0002097,2]
[392229172,1761268870137,-666.0,0.00020947,2]
[392229174,1761268922629,172.47352,0.00020947,2]
[392229178,1761269049630,268.85816276,0.000209,2]
[392229186,1761269195097,-268.85816276,0.00021528,2]
[392229187,1761269201133,1378.0,0.0002,2]
[392229198,1761269352545,4618.667,0.00020973,2]
[392229211,1761269409925,288.48446353,0.00035896,30]
[392229212,1761269413703,156.76509848,0.00035896,60]
[392229213,1761269413755,176.20268488,0.00035896,60]
[392229214,1761269419832,209.86956416,0.00035896,60]
[392229215,1761269426472,429.24345599,0.00035896,60]
[392229216,1761269429948,196.0,0.00016,2]
[392229217,1761269429977,196.0,0.0001621,2]
[392229218,1761269430008,196.0,0.0001642,2]
[392229219,1761269430065,196.0,0.0001663,2]
[392229220,1761269430148,196.0,0.0001684,2]
[392229221,1761269430216,196.0,0.0001705,2]
[392229222,1761269430278,196.0,0.0001726,2]
[392229223,1761269430371,196.0,0.0001747,2]
[392229224,1761269430429,196.0,0.0001768,2]
[392229225,1761269430490,196.0,0.0001789,2]
[392229226,1761269430545,323.39125469,0.000181,2]
[392229291,1761269432583,-150.0,0.00020975,2]
[392229293,1761269432593,-233.23258604,0.00021547,2]
[392229295,1761269432602,-329.9196901,0.00021765,2]
[392229297,1761269432611,-1893.82690612,0.00021906,2]
[392229299,1761269432620,-338.59,0.00021942,10]
[392229301,1761269432629,-300.0,0.00021944,2]
[392229303,1761269432638,-370.0,0.00021944,2]
[392229305,1761269432647,-5327.51253112,0.00021945,2]
[392229307,1761269432659,-4347.58372596,0.00021945,2]
[392229309,1761269432671,-10038.81041837,0.00021945,2]
[392229311,1761269432680,-500.0,0.0002195,2]
[392229313,1761269432690,-41254.58155564,0.00021952,2]
[392229381,1761269438228,-644.52289732,0.00021952,2]
[392229382,1761269438240,-12193.81233505,0.00021952,2]
[392229384,1761269438332,-6891.18189148,0.00021952,2]
[392229396,1761269441667,151.66794318,0.00035896,60]
[392229404,1761269443482,-394.96,0.00021942,10]
[392229405,1761269443492,-500.0,0.00021944,2]
[392229406,1761269443501,-505.77113646,0.00021944,2]
[392229407,1761269443511,-500.0,0.00021944,2]
[392229408,1761269443520,-500.0,0.00021944,2]
[392229409,1761269443530,-500.0,0.00021944,2]
[392229410,1761269443540,-100.37219632,0.00021944,2]
[392229415,1761269444762,583.1,0.0003013,120]
[392229421,1761269446952,-399.62780368,0.00021944,2]
[392229422,1761269446963,-472.39043674,0.00021944,2]
[392229423,1761269446972,-179.75135656,0.00021944,2]
[392229424,1761269446982,-23.84680302,0.00021944,2]
[392229425,1761269449158,283.29798217,0.00035896,60]
[392229426,1761269452428,160.79134093,0.00035896,60]
[392229427,1761269452778,1752.06836164,0.00035896,120]
[392229431,1761269480100,200.0,0.00035896,120]
[392229432,1761269480539,4921.0,0.00035896,30]
[392229434,1761269504658,246.6458348,0.00035896,60]
[392229435,1761269513187,160.1216213,0.00035896,60]
[392229436,1761269544335,178.35150689,0.00035896,60]
[392229437,1761269549412,500.0,0.00035896,60]
[392229438,1761269549646,201.15187824,0.00035896,60]
[392229439,1761269550076,161.26154608,0.00035896,60]
[392229440,1761269553385,152.0,0.00024,120]
[392229441,1761269554774,152.0,0.000284,120]
[392229443,1761269571365,169.407894,0.00035896,60]
[392229444,1761269572776,181.98399538,0.00035896,60]
[392229445,1761269575994,172.77575137,0.00035896,60]
[392229446,1761269580829,279.40262895,0.00035896,60]
[392229447,1761269592743,158.12453469,0.00035896,60]
[392229448,1761269608479,252.02612992,0.00035896,60]
[392229449,1761269629168,328.49377959,0.00035896,60]
[392229450,1761269645375,459.59122852,0.00035897,60]
[392229451,1761269651669,161.84775655,0.00035897,60]
[392229452,1761269656280,246.65080981,0.00035897,60]
[392229454,1761269664152,299.25490604,0.00035897,60]
[392229455,1761269678720,150.0,0.00020567,2]
[392229456,1761269691822,876.9458455,0.00020942,2]
[392229457,1761269745207,150.0,0.00020579,2]
[392229460,1761269846821,1942.73453393,0.00020973,2]
[392229464,1761269897389,1407.0774645,0.0002094,2]
[392229472,1761270262883,220.0195312,0.00035918,120]
[392229475,1761270311711,930.56966,0.00013699,2]
[392229476,1761270312205,930.56966,0.00020187,2]
[392229478,1761270436547,163.21674623,0.00020896,2]
[392229482,1761270539400,1089.66339289,0.00035918,120]
[392229520,1761270632395,-874.63818407,0.0002099,2]
[392229522,1761270632405,-600.684,0.0002099,2]
[392229524,1761270632416,-1890.62814961,0.0002099,2]
[392229528,1761270632446,-442.92389087,0.0002099,2]
[392229529,1761270632455,-330.49560523,0.00020996,2]
[392229531,1761270632464,-500.0,0.00021,2]
[392229534,1761270632474,-25.48925621,0.00021754,2]
[392229598,1761270638312,-224.51074379,0.00021754,2]
[392229601,1761270638324,-109.59532588,0.00021773,2]
[392229603,1761270638338,-71.62131713,0.00021773,2]
[392229605,1761270638350,-1914.17523193,0.00021802,2]
[392229607,1761270638362,-300.0,0.00021817,2]
[392229608,1761270638373,-300.0,0.00021817,2]
[392229610,1761270638383,-1200.0,0.00021817,2]
[392229612,1761270638393,-5775.1905246,0.00021818,2]
[392229615,1761270638403,-741.58,0.00021834,10]
[392229616,1761270638413,-760.31012634,0.00021834,10]
[392229619,1761270638427,-57.40987366,0.00021834,10]
[392229621,1761270638437,-500.0,0.00021843,2]
[392229623,1761270638449,-500.0,0.00021843,2]
[392229625,1761270638461,-441.78326553,0.00021843,2]
[392229627,1761270638471,-500.0,0.00021843,2]
[392229629,1761270638483,-500.0,0.00021843,2]
[392229631,1761270638495,-500.0,0.00021843,2]
[392229633,1761270638505,-500.0,0.00021843,2]
[392229635,1761270638515,-500.0,0.00021843,2]
[392229637,1761270638526,-467.04722197,0.00021843,2]
[392229849,1761270643447,-681.44,0.0002184,10]
[392229850,1761270643458,-32.95277803,0.00021843,2]
[392229851,1761270643468,-500.0,0.00021843,2]
[392229852,1761270643480,-500.0,0.00021843,2]
[392229853,1761270643490,-500.0,0.00021843,2]
[392229854,1761270643501,-500.0,0.00021843,2]
[392229855,1761270643511,-500.0,0.00021843,2]
[392229856,1761270643521,-500.0,0.00021843,2]
[392229857,1761270643532,-500.0,0.00021843,2]
[392229858,1761270643542,-500.0,0.00021843,2]
[392229859,1761270643553,-500.0,0.00021843,2]
[392229860,1761270643563,-500.0,0.00021843,2]
[392229861,1761270643574,-500.0,0.00021843,2]
[392229862,1761270643585,-500.0,0.00021843,2]
[392229863,1761270643596,-500.0,0.00021843,2]
[392229864,1761270643607,-500.0,0.00021843,2]
[392229865,1761270643618,-500.0,0.00021843,2]
[392229866,1761270643629,-500.0,0.00021843,2]
[392229867,1761270643640,-500.0,0.00021843,2]
[392229868,1761270643650,-500.0,0.00021843,2]
[392229869,1761270643660,-500.0,0.00021843,2]
[392229870,1761270643671,-500.0,0.00021843,2]
[392229871,1761270643805,-500.0,0.00021843,2]
[392229872,1761270643816,-500.0,0.00021843,2]
[392229873,1761270643826,-601.25957947,0.00021843,2]
[392229874,1761270643835,-193.14085976,0.00021843,2]
[392229875,1761270643844,-151.0,0.00021844,7]
[392229876,1761270643855,-160.495224,0.00021844,7]
[392229877,1761270643866,-6542.67357819,0.00021844,2]
[392229897,1761270646640,-500.0,0.00021843,2]
[392229898,1761270646649,-500.0,0.00021843,2]
[392229899,1761270646659,-500.0,0.00021843,2]
[392229900,1761270646668,-500.0,0.00021843,2]
[392229901,1761270646678,-500.0,0.00021843,2]
[392229902,1761270646687,-500.0,0.00021843,2]
[392229903,1761270646697,-500.0,0.00021843,2]
[392229904,1761270646706,-500.0,0.00021843,2]
[392229905,1761270646715,-500.0,0.00021843,2]
[392229906,1761270646725,-500.0,0.00021843,2]
[392229907,1761270646734,-500.0,0.00021843,2]
[392229908,1761270646744,-500.0,0.00021843,2]
[392229909,1761270646753,-500.0,0.00021843,2]
[392229910,1761270646762,-500.0,0.00021843,2]
[392229911,1761270646772,-500.0,0.00021843,2]
[392229912,1761270646781,-500.0,0.00021843,2]
[392229913,1761270646791,-500.0,0.00021843,2]
[392229914,1761270646800,-500.0,0.00021843,2]
[392229915,1761270646810,-500.0,0.00021843,2]
[392229916,1761270646819,-500.0,0.00021843,2]
[392229917,1761270646828,-500.0,0.00021843,2]
[392229918,1761270646836,-500.0,0.00021843,2]
[392229919,1761270646845,-500.0,0.00021843,2]
[392229920,1761270646854,-500.0,0.00021843,2]
[392229921,1761270646863,-500.0,0.00021843,2]
[392229922,1761270646871,-500.0,0.00021843,2]
[392229923,1761270646880,-500.0,0.00021843,2]
[392229924,1761270646889,-500.0,0.00021843,2]
[392229925,1761270646898,-500.0,0.00021843,2]
[392229926,1761270646906,-500.0,0.00021843,2]
[392229927,1761270646915,-500.0,0.00021843,2]
[392229928,1761270646924,-500.0,0.00021843,2]
[392229929,1761270646932,-500.0,0.00021843,2]
[392229930,1761270646942,-500.0,0.00021843,2]
[392229931,1761270646951,-500.0,0.00021843,2]
[392229932,1761270646960,-500.0,0.00021843,2]
[392229933,1761270646970,-500.0,0.00021843,2]
[392229934,1761270646979,-500.0,0.00021843,2]
[392229935,1761270646988,-600.91274085,0.00021843,2]
[392229936,1761270646999,-500.0,0.00021843,2]
[392229937,1761270647008,-500.0,0.00021843,2]
[392229938,1761270647018,-500.0,0.00021843,2]
[392229939,1761270647027,-39525.65266877,0.00021844,2]
[392229940,1761270647036,-500.0,0.00021844,7]
[392229941,1761270647046,-500.0,0.00021846,2]
[392229942,1761270647055,-500.0,0.00021846,2]
[392229943,1761270647064,-500.0,0.00021849,2]
[392229944,1761270647073,-500.0,0.00021849,2]
[392229945,1761270647082,-500.0,0.00021849,2]
[392229946,1761270647091,-327.0061674,0.00021849,2]
[392229947,1761270647101,-370000.0,0.0002185,2]
[392229948,1761270647110,-563.28,0.00021917,2]
[392229949,1761270647120,-563.28,0.00021917,2]
[392229950,1761270647129,-563.28,0.00021917,2]
[392229951,1761270647139,-563.28,0.00021917,2]
[392229952,1761270647148,-563.28,0.00021917,2]
[392229953,1761270647156,-563.28,0.00021917,2]
[392229954,1761270647168,-563.28,0.00021917,2]
[392229955,1761270647178,-563.28,0.00021917,2]
[392229956,1761270647188,-563.28,0.00021917,2]
[392229957,1761270647197,-563.28,0.00021917,2]
[392229958,1761270647206,-563.28,0.00021917,2]
[392229959,1761270647216,-563.28,0.00021917,2]
[392229960,1761270647225,-563.28,0.00021917,2]
[392229961,1761270647234,-563.28,0.00021917,2]
[392229962,1761270647249,-563.28,0.00021917,2]
[392229963,1761270647258,-563.28,0.00021917,2]
[392229964,1761270647267,-563.28,0.00021917,2]
[392229965,1761270647276,-563.28,0.00021917,2]
[392229966,1761270647286,-563.28,0.00021917,2]
[392229967,1761270647295,-563.28,0.00021917,2]
[392229968,1761270647304,-563.28,0.00021917,2]
[392229969,1761270647314,-563.28,0.00021917,2]
[392229970,1761270647323,-563.28,0.00021917,2]
[392229971,1761270647332,-563.43288354,0.00021917,2]
[392229972,1761270647342,-151.0,0.00021918,7]
[392229973,1761270647352,-151.0,0.00021918,7]
[392229974,1761270647361,-263.13238,0.00021918,7]
[392229975,1761270647371,-532.30048252,0.0002194,2]
[392229976,1761270647380,-87341.4867529,0.0002195,2]
[392229977,1761270647389,-150.73179658,0.00021951,2]
[392229978,1761270647398,-513.72222674,0.00021973,2]
[392229979,1761270647407,-500.0,0.00021973,2]
[392229980,1761270647418,-164.0,0.00022,2]
[392229981,1761270647428,-155.0,0.00022049,2]
[392229982,1761270647438,-942.89667142,0.00022096,2]
[392229983,1761270647448,-500.0,0.00022118,7]
[392229984,1761270647457,-422.36244779,0.00022127,2]
[392229985,1761270647468,-242.36227077,0.00022142,2]
[392229986,1761270647478,-276.9854523,0.00022142,2]
[392229987,1761270647488,-432.78976923,0.00022142,2]
[392229988,1761270647500,-622.59405042,0.00022142,2]
[392229989,1761270647510,-11291.1,0.000222,7]
[392229990,1761270647519,-403.24192968,0.000222,7]
[392229991,1761270647528,-500.0,0.00022392,7]
[392229992,1761270647538,-344.47,0.00022488,2]
[392229993,1761270647547,-1000.0,0.00022521,2]
[392229994,1761270647557,-181.21664301,0.0002254,2]
[392229995,1761270647567,-228.0,0.00022592,2]
[392229996,1761270647576,-201.0,0.00022592,2]
[392229997,1761270647587,-201.0,0.00022592,2]
[392229998,1761270647596,-229.0,0.00022592,2]
[392229999,1761270647606,-222.0,0.00022592,2]
[392230000,1761270647615,-222.0,0.00022592,2]
[392230001,1761270647624,-314.0,0.00022592,2]
[392230002,1761270647633,-330.0,0.00022592,2]
[392230003,1761270647643,-234.0,0.00022592,2]
[392230004,1761270647652,-234.0,0.00022592,2]
[392230005,1761270647662,-234.0,0.00022592,2]
[392230006,1761270647671,-234.0,0.00022592,2]
[392230007,1761270647680,-216.0,0.00022592,2]
[392230008,1761270647689,-191.0,0.00022592,2]
[392230009,1761270647699,-191.0,0.00022592,2]
[392230010,1761270647708,-226.0,0.00022592,2]
[392230011,1761270647718,-226.0,0.00022592,2]
[392230012,1761270647727,-171.0,0.00022592,2]
[392230013,1761270647736,-171.0,0.00022592,2]
[392230014,1761270647747,-600.0,0.00022594,20]
[392230015,1761270647756,-500.0,0.00022666,7]
[392230016,1761270647769,-510.87133115,0.0002294,7]
[392230017,1761270647779,-389.98481417,0.00022996,2]
[392230018,1761270647788,-500.76358844,0.0002304,2]
[392230019,1761270647797,-160.2163956,0.0002304,2]
[392230020,1761270647806,-1500.0,0.00023068,2]
[392230021,1761270647815,-358.0,0.0002317,2]
[392230022,1761270647825,-181.21664301,0.00023306,2]
[392230023,1761270647834,-406.64505632,0.00023392,2]
[392230024,1761270647843,-500.0,0.000235,2]
[392230025,1761270647852,-500.68473538,0.000235,2]
[392230026,1761270647861,-500.49728325,0.000235,2]
[392230027,1761270647871,-4209.0,0.00023524,2]
[392230028,1761270647880,-988.458,0.00023524,2]
[392230029,1761270647890,-635.657,0.00023524,2]
[392230030,1761270647899,-2165.0,0.00023524,2]
[392230031,1761270647908,-250.0,0.00023524,2]
[392230032,1761270647917,-172.80572627,0.00023616,2]
[392230033,1761270647929,-240.03203676,0.000237,2]
[392230034,1761270647940,-474.48272292,0.000237,2]
[392230035,1761270647950,-151.736,0.00023703,2]
[392230036,1761270647960,-262.513,0.00023703,2]
[392230037,1761270647969,-228.386,0.00023703,2]
[392230038,1761270647981,-155.837,0.00023703,2]
[392230039,1761270647991,-420.0,0.00023712,2]
[392230040,1761270648001,-5775.19052459,0.00023873,2]
[392230041,1761270648011,-1000.0,0.00024048,2]
[392230042,1761270648020,-181.21664301,0.00024073,2]
[392230043,1761270648030,-309.92440947,0.00024097,2]
[392230044,1761270648040,-1831.14923619,0.00024142,2]
[392230045,1761270648051,-151.0,0.000243,7]
[392230046,1761270648061,-151.0,0.000243,9]
[392230047,1761270648070,-151.0,0.000244,9]
[392230048,1761270648079,-1500.0,0.00024596,2]
[392230049,1761270648088,-151.0,0.000246,5]
[392230050,1761270648097,-151.0,0.000246,10]
[392230051,1761270648107,-380.0,0.00024658,2]
[392230052,1761270648116,-151.0,0.000247,7]
[392230053,1761270648125,-12588.8430565,0.000248,2]
[392230054,1761270648134,-178.4246197,0.00024813,2]
[392230055,1761270648144,-181.21664301,0.00024839,2]
[392230056,1761270648153,-720.0,0.00024853,20]
[392230057,1761270648162,-1144.44027786,0.0002488,2]
[392230058,1761270648176,-132365.813377,0.000249,2]
[392230059,1761270648185,-150.0,0.00024973,2]
[392230060,1761270648195,-150.0,0.00024973,2]
[392230061,1761270648204,-150.0,0.00024973,2]
[392230062,1761270648214,-160.0,0.00024981,2]
[392230063,1761270648223,-600.0,0.00024986,2]
[392230064,1761270648233,-158.223414,0.00024986,2]
[392230065,1761270648242,-40541.63700931,0.0002499,2]
[392230066,1761270693526,205.64574969,0.0002089,2]
[392230067,1761270850008,242.45375197,0.000209,2]
[392230068,1761270908925,300.0,0.000209,2]
[392230069,1761270967346,150.0,0.00020217,2]
[392230070,1761270990375,165.3048923,0.00030137,120]
[392230071,1761271027592,1019.64088743,0.00035939,30]
[392230072,1761271033872,150.0,0.00020146,2]
[392230073,1761271053172,300.0,0.000215,60]
[392230074,1761271098846,150.0,0.00020167,2]
[392230076,1761271127975,273.821258,0.00020744,2]
[392230079,1761271163742,150.0,0.00020152,2]
[392230084,1761271254660,5000.0,0.00020973,2]
[392230085,1761271261072,306.0,0.00035953,120]
[392230095,1761271559495,172.47352,0.00020702,2]
[392230103,1761271626903,516.3,0.00020973,2]
[392230107,1761271652140,-160.0,0.00021312,2]
[392230108,1761271652162,-350.43480788,0.00021313,2]
[392230109,1761271652184,-200.0,0.00021315,2]
[392230110,1761271652208,-300.0,0.00021593,2]
[392230111,1761271652228,-12127.9732284,0.00021594,2]
[392230112,1761271652248,-1800.63017727,0.00021673,2]
[392230113,1761271652270,-9178.36703166,0.00021673,2]
[392230114,1761271652289,-1200.0,0.00021739,2]
[392230115,1761271652310,-342.62,0.0002174,3]
[392230116,1761271652331,-453.72,0.0002174,3]
[392230117,1761271652354,-226.86,0.0002174,3]
[392230118,1761271652377,-680.6,0.0002174,3]
[392230119,1761271652399,-611.49,0.0002174,10]
[392230120,1761271652421,-509.58,0.0002174,10]
[392230121,1761271652444,-424.65,0.0002174,10]
[392230122,1761271652464,-205.64574969,0.00021743,2]
[392230123,1761271652631,-500.0,0.00021747,2]
[392230124,1761271652652,-500.0,0.00021747,2]
[392230125,1761271652676,-200.0,0.00021747,2]
[392230126,1761271652696,-500.0,0.00021747,2]
[392230127,1761271652717,-500.0,0.00021747,2]
[392230128,1761271652738,-500.0,0.00021747,2]
[392230129,1761271652760,-500.0,0.00021747,2]
[392230130,1761271652780,-503.69409548,0.00021747,2]
[392230131,1761271652801,-500.0,0.00021747,2]
[392230132,1761271652822,-500.0,0.00021747,2]
[392230133,1761271652842,-500.0,0.00021747,2]
[392230134,1761271652863,-220.21723204,0.00021747,2]
[392230135,1761271652882,-500.0,0.00021747,2]
[392230136,1761271652907,-500.0,0.00021747,2]
[392230137,1761271652928,-500.0,0.00021747,2]
[392230138,1761271652952,-500.0,0.00021747,2]
[392230139,1761271652973,-500.0,0.00021747,2]
[392230140,1761271652996,-500.0,0.00021747,2]
[392230141,1761271653023,-500.0,0.00021747,2]
[392230142,1761271653044,-500.0,0.00021747,2]
[392230143,1761271653066,-500.0,0.00021747,2]
[392230144,1761271653086,-500.0,0.00021747,2]
[392230145,1761271653107,-500.0,0.00021747,2]
[392230146,1761271653128,-500.0,0.00021747,2]
[392230147,1761271653150,-500.0,0.00021747,2]
[392230148,1761271653172,-500.0,0.00021747,2]
[392230149,1761271653193,-500.0,0.00021747,2]
[392230150,1761271653214,-500.0,0.00021747,2]
[392230151,1761271653236,-500.0,0.00021747,2]
[392230152,1761271653258,-500.0,0.00021747,2]
[392230153,1761271653292,-500.0,0.00021747,2]
[392230154,1761271653319,-500.0,0.00021747,2]
[392230155,1761271653343,-499.99999999,0.00021747,2]
[392230156,1761271653364,-500.0,0.00021748,2]
[392230157,1761271653386,-500.0,0.00021749,2]
[392230158,1761271653409,-496.0,0.00021749,2]
[392230159,1761271653434,-500.0,0.0002175,10]
[392230160,1761271653456,-200.0,0.0002175,10]
[392230161,1761271653476,-200.0,0.0002175,10]
[392230162,1761271653498,-184.354338,0.0002175,10]
[392230163,1761271653519,-139264.64021694,0.0002175,2]
[392230164,1761271680089,310.67,0.00015984,27]
[392230165,1761271680341,310.67,0.00015984,27]
[392230185,1761271747256,202.7919936,0.00020753,2]
[392230198,1761271784011,7030.0,0.0002,2]
[392230201,1761271794990,229.894671,0.00020919,2]
[392230203,1761271795216,229.894671,0.00020919,120]
[392230205,1761271800782,2740.115329,0.00020973,2]
[392230206,1761271800803,1937.43902243,0.00020973,2]
[392230207,1761271831610,1999.99,0.00020973,2]
[392230263,1761271832595,-300.0,0.00020999,2]
[392230265,1761271832605,-1497.96184021,0.00021,2]
[392230268,1761271832616,-12502.03815979,0.00021,2]
[392230270,1761271832625,-1440.5041418,0.00021673,2]
[392230272,1761271832634,-353.87,0.0002174,10]
[392230274,1761271832645,-294.89,0.0002174,10]
[392230276,1761271832654,-500.0,0.00021749,2]
[392230278,1761271832663,-300.0,0.00021749,2]
[392230280,1761271832673,-500.0,0.00021749,2]
[392230282,1761271832682,-302.24635912,0.00021749,2]
[392230283,1761271832691,-500.0,0.00021749,2]
[392230285,1761271832701,-500.0,0.00021749,2]
[392230287,1761271832709,-200.0,0.00021749,2]
[392230289,1761271832720,-500.0,0.00021749,2]
[392230291,1761271832729,-500.0,0.00021749,2]
[392230293,1761271832739,-500.0,0.00021749,2]
[392230295,1761271832749,-500.0,0.00021749,2]
[392230297,1761271832758,-51.58724587,0.00021749,2]
[392230316,1761271832911,-448.41275413,0.00021749,2]
[392230318,1761271832925,-500.0,0.00021749,2]
[392230320,1761271832937,-317.02573441,0.00021749,2]
[392230323,1761271832952,-182.97426559,0.00021749,2]
[392230325,1761271832964,-318.387948,0.00021749,2]
[392230328,1761271832982,-3.93613824,0.00021749,2]
[392230331,1761271832995,-3031.96361624,0.0002175,2]
[392230813,1761271838439,-261.79905493,0.0002175,2]
[392230877,1761271839012,-74393.03196977,0.0002175,2]
[392230879,1761271839031,-5055.6356061,0.0002175,2]
[392230882,1761271839044,-3025.20411675,0.0002175,2]
[392231520,1761271846712,-17313.53192458,0.0002175,2]
[392231522,1761271846724,-375.17554762,0.0002175,2]
[392231525,1761271846735,-987.52577733,0.0002175,2]
[392231527,1761271846746,-342.55454446,0.0002175,2]
[392231529,1761271846756,-374.92114556,0.0002175,2]
[392231531,1761271846771,-608.14524561,0.0002175,2]
[392231534,1761271846782,-352.72865605,0.0002175,2]
[392232175,1761271873013,150.0,0.00019456,2]
[392232186,1761271949591,666.0,0.00020775,2]
[392232195,1761272496436,1358.29072934,0.0002102,2]
[392232203,1761272719938,1212.33246039,0.00035945,32]
[392232212,1761272801128,-268.85816276,0.00021426,2]
[392232216,1761272851086,-1223.86164796,0.00021426,2]
[392232217,1761272851112,-349.83859681,0.00021464,2]
[392232218,1761272851132,-1335.57931344,0.00021573,2]
[392232219,1761272851153,-348.0,0.00021609,2]
[392232220,1761272851173,-154.0,0.00021609,2]
[392232221,1761272851194,-314.0,0.00021609,2]
[392232222,1761272851214,-300.0,0.00021609,2]
[392232223,1761272851234,-300.0,0.00021609,2]
[392232224,1761272851253,-6118.91135444,0.0002161,2]
[392232225,1761272851272,-341.06,0.0002164,3]
[392232226,1761272851292,-170.53,0.0002164,3]
[392232227,1761272851312,-511.63,0.0002164,3]
[392232228,1761272851344,-245.75,0.0002164,10]
[392232229,1761272851364,-204.79,0.0002164,10]
[392232230,1761272851395,-170.66,0.0002164,10]
[392232231,1761272851415,-185.27166057,0.00021648,2]
[392232232,1761272851434,-500.0,0.00021649,2]
[392232233,1761272851455,-500.0,0.00021649,2]
[392232234,1761272851475,-500.0,0.00021649,2]
[392232235,1761272851496,-500.0,0.00021649,2]
[392232236,1761272851517,-500.0,0.00021649,2]
[392232237,1761272851536,-500.0,0.00021649,2]
[392232238,1761272851557,-500.0,0.00021649,2]
[392232239,1761272851578,-500.0,0.00021649,2]
[392232240,1761272851599,-500.0,0.00021649,2]
[392232241,1761272851725,-305.14593909,0.00021649,2]
[392232242,1761272851746,-500.0,0.00021649,2]
[392232243,1761272851767,-500.0,0.00021649,2]
[392232244,1761272851788,-391.69333135,0.00021649,2]
[392232245,1761272851808,-500.0,0.00021649,2]
[392232246,1761272851828,-120130.85518136,0.0002165,2]
[392232248,1761272868570,3133.07325771,0.00018,2]
[392232250,1761272872779,4516.54837057,0.00018,2]
[392232252,1761272886761,153.78228313,0.00021,2]
[392232254,1761272891766,421.09167492,0.00010618,2]
[392232256,1761272893701,9425.13604195,0.000125,2]
[392232257,1761272893722,2121.08101611,0.000125,2]
[392232261,1761272914645,7878.92898389,0.00015,2]
[392232262,1761272914667,10000.01,0.00015,2]
[392232263,1761272914688,10000.01,0.00015,2]
[392232264,1761272914710,10000.01,0.00015,2]
[392232265,1761272914731,10000.01,0.00015,2]
[392232266,1761272914753,1880.45944898,0.00015,2]
[392232267,1761272914957,578.64834356,0.00035945,60]
[392232268,1761272915035,788.49291725,0.0002061,2]
[392232270,1761272916541,287.22458033,0.00035945,120]
[392232272,1761272917497,250.65204304,0.00035945,120]
[392232275,1761272919633,234.67832687,0.00035945,60]
[392232276,1761272921061,157.45067624,0.00035945,30]
[392232289,1761272962078,625.68267995,0.00035945,60]